bitfinex-derivatives/quotes_ETHF0:USTF0_20250624
["timestamp","ask_amount","ask_price","bid_price","bid_amount"]
[1750787941001,26.131,2457.1,2456.7,0.81364]
[1750787941204,26.53015828,2457.1,2456.8,1.3983]
[1750787941406,0.8136,2457.0,2456.8,6.7783]
[1750787941602,0.8136,2457.0,2456.8,7.59193]
[1750787942008,0.81358,2457.0,2456.8,7.59192]
[1750787942515,26.53015828,2457.1,2456.8,6.7783]
[1750787942712,26.53015828,2457.1,2457.0,0.81357]
[1750787943018,26.53015828,2457.1,2457.0,6.10357]
[1750787943514,0.8988,2457.9,2457.0,13.4978]
[1750787943817,0.81337,2457.6,2457.5,3.2078]
[1750787944010,0.81336,2457.7,2457.5,9.52641]
[1750787944209,1.22496433,2457.7,2457.5,9.52641]
[1750787944410,0.81337,2457.6,2457.5,5.5052]
[1750787946514,0.81336,2457.7,2457.5,6.31859]
[1750787946716,0.81332,2457.8,2457.6,0.81336]
[1750787946921,0.81332,2457.8,2457.7,1.3637]
[1750787947221,0.81332,2457.8,2457.7,1.9937]
[1750787947420,34.08832,2457.8,2457.7,1.9937]
[1750787948121,7.179,2457.8,2457.7,1.9937]
[1750787948322,34.08731,2457.8,2457.7,1.9937]
[1750787948713,33.274,2457.8,2457.7,2.80704]
[1750787948910,33.274,2457.8,2457.7,1.9937]
[1750787948911,34.08731,2457.8,2457.7,1.9937]
[1750787949119,7.179,2457.8,2457.7,2.80704]
[1750787949420,7.99231,2457.8,2457.7,1.9937]
[1750787950426,14.1160852,2457.8,2457.7,0.63]
[1750787952522,19.1160852,2457.8,2457.7,0.63]
[1750787952824,0.81347,2457.3,2457.2,5.10057872]
[1750787953022,0.81347,2457.3,2457.2,5.55]
[1750787953023,6.9372452,2457.3,2457.2,5.55]
[1750787955223,6.9372452,2457.3,2457.2,6.8511]
[1750787955924,0.81347,2457.3,2457.2,7.66461]
[1750787956126,0.81347,2457.3,2457.2,7.6632]
[1750787956525,0.81347,2457.3,2457.2,8.47671]
[1750787956722,33.214,2457.4,2457.3,0.81347]
[1750787956927,35.22719593,2457.4,2457.3,11.0683]
[1750787957223,35.22719593,2457.4,2457.3,7.8605]
[1750787957625,2.01319593,2457.4,2457.3,7.8605]
[1750787958223,2.01319593,2457.4,2457.3,8.67397]
[1750787958421,2.01319593,2457.4,2457.3,11.88177]
[1750787958422,1.19975593,2457.4,2457.3,11.88177]
[1750787958621,35.5800786,2458.4,2457.3,29.3700752]
[1750787958830,0.81327,2457.9,2457.8,3.2078]
[1750787959028,0.81327,2458.0,2457.8,9.2078]
[1750787959225,46.9444838,2458.4,2457.9,2.03318]
[1750787959226,0.81314,2458.3,2457.9,2.03318]
[1750787959431,2.0146523,2458.2,2458.1,0.81319]
[1750787959727,46.88,2458.6,2458.1,5.24081]
[1750787959930,0.81304,2458.6,2458.5,0.81307]
[1750787960230,33.128,2458.7,2458.1,5.24081]
[1750787960434,33.133,2458.7,2458.2,2.03293]
[1750787960633,0.8131,2458.5,2458.4,0.81309]
[1750787960825,0.8131,2458.5,2458.4,6.11309]
[1750787961031,0.8131,2458.5,2458.4,5.3]
[1750787966037,2.03284,2458.4,2457.8,3.2078]
[1750787966342,0.81323,2458.1,2457.9,0.81325]
[1750787966542,0.81323,2458.1,2457.9,7.08325]
[1750787966838,0.81324,2458.0,2457.9,7.08325]
[1750787967234,0.81324,2458.0,2457.9,6.27]
[1750787971440,0.81324,2458.0,2457.9,7.6054]
[1750787971739,2.01089752,2458.0,2457.9,7.6054]
[1750787972236,27.92889752,2458.0,2457.9,7.6054]
[1750787972640,27.92889752,2458.0,2457.9,6.27]
[1750787977247,27.92889752,2458.0,2457.9,7.6029]
[1750787977948,27.92889752,2458.0,2457.9,9.25787]
[1750787978341,27.92889752,2458.0,2457.9,8.4446]
[1750787980553,27.92889752,2458.0,2457.9,9.25787]
[1750787980756,27.92889752,2458.0,2457.9,8.4446]
[1750787981056,27.92889752,2458.0,2457.9,9.25787]
[1750787981361,27.92889752,2458.0,2457.9,8.4446]
[1750787982754,27.92889752,2458.0,2457.9,9.25787]
[1750787982954,27.92889752,2458.0,2457.9,8.4446]
[1750787984255,27.92889752,2458.0,2457.9,9.25787]
[1750787984756,27.92889752,2458.0,2457.9,8.4446]
[1750787985355,27.92889752,2458.0,2457.9,9.25787]
[1750787986456,30.93199542,2458.0,2457.9,9.25787]
[1750787986754,1.19765752,2458.0,2457.9,9.25787]
[1750787986950,26.61721,2458.1,2458.0,0.81324]
[1750787987147,27.79411202,2458.1,2458.0,7.70984]
[1750787989552,26.98090202,2458.1,2458.0,7.70984]
[1750787989951,1.20090202,2458.1,2458.0,7.70984]
[1750787990157,1.20090202,2458.1,2458.0,12.70984]
[1750787990654,6.958,2458.4,2458.3,0.81314]
[1750787990857,5.01933104,2458.4,2458.3,6.01312]
[1750787991055,2.01623314,2458.4,2458.3,5.2]
[1750787991256,5.01933104,2458.4,2458.3,6.5715]
[1750787991556,5.01933104,2458.4,2458.3,9.7793]
[1750787991953,5.01933104,2458.4,2458.3,6.5715]
[1750787993153,4.20622104,2458.4,2458.3,7.38464]
[1750787993852,5.01933104,2458.4,2458.3,7.38464]
[1750787994859,1.20312314,2458.4,2458.3,10.59244]
[1750787995060,2.01623314,2458.4,2458.3,10.59244]
[1750787996156,1.20312314,2458.4,2458.3,10.59244]
[1750787996660,2.01623314,2458.4,2458.3,10.59244]
[1750787996958,1.20312314,2458.4,2458.3,10.59244]
[1750787999356,0.81308,2458.5,2458.4,0.81311]
[1750787999660,2.01539864,2458.5,2458.4,8.62641]
[1750787999963,1.20231864,2458.5,2458.4,8.62641]
[1750788000356,0.81302,2458.8,2458.7,0.81297]
[1750788000555,0.81296,2458.9,2458.8,0.81294]
[1750788000749,0.81294,2458.9,2458.8,5.48]
[1750788000948,26.48994,2458.9,2458.8,5.48]
[1750788001260,29.69774,2458.9,2458.8,5.48]
[1750788001457,31.20374,2458.9,2458.8,5.48]
[1750788001661,32.20814,2458.9,2458.8,5.17499941]
[1750788001959,2.03248,2458.8,2458.4,0.81311]
[1750788002155,3.0030979,2458.5,2458.4,7.25309]
[1750788002361,3.8161679,2458.5,2458.4,6.44]
[1750788003471,3.8161679,2458.5,2458.4,7.7809]
[1750788003756,3.8161679,2458.5,2458.4,6.44]
[1750788004655,11.8192658,2458.5,2458.4,5.23768136]
[1750788004852,0.81321,2458.1,2458.0,3.2078]
[1750788005053,36.4493079,2458.1,2458.0,9.1778]
[1750788005859,25.676,2458.3,2458.0,9.1778]
[1750788006055,25.676,2458.3,2458.1,1.4169]
[1750788006258,0.81317,2458.2,2458.1,6.6369]
[1750788006767,0.81317,2458.2,2458.1,7.45011]
[1750788006953,0.81317,2458.2,2458.1,8.17671]
[1750788007149,0.81317,2458.2,2458.1,7.3635]
[1750788007764,6.958,2458.7,2458.1,15.3665979]
[1750788008064,26.49396,2458.9,2458.7,0.81298]
[1750788008265,0.81296,2458.9,2458.8,2.1886]
[1750788008562,0.81298,2458.8,2458.7,3.2078]
[1750788008758,0.81298,2458.8,2458.7,3.4678]
[1750788009151,0.81298,2458.8,2458.7,0.26]
[1750788009555,0.81314,2458.3,2458.2,1.4033]
[1750788009751,0.81314,2458.3,2458.2,7.3733]
[1750788010163,0.81314,2458.3,2458.2,8.18647]
[1750788010361,0.81314,2458.3,2458.2,7.3733]
[1750788010754,33.47014,2458.4,2458.2,7.3733]
[1750788010963,11.35061977,2459.0,2458.3,1.34]
[1750788011269,2.03245,2458.8,2458.4,3.2078]
[1750788011565,0.81307,2458.5,2458.4,3.3178]
[1750788011768,33.48807,2458.5,2458.4,4.13091]
[1750788011968,33.48807,2458.5,2458.4,5.47091]
[1750788012164,32.675,2458.5,2458.4,5.47091]
[1750788012364,25.725,2458.7,2458.4,5.47091]
[1750788012666,0.81308,2458.5,2458.4,4.6578]
[1750788012969,0.81307,2458.6,2458.4,4.6578]
[1750788013265,26.53803,2458.7,2458.6,0.81304]
[1750788013468,0.81306,2458.6,2458.5,0.81305]
[1750788013665,0.81306,2458.6,2458.5,8.08305]
[1750788013867,0.81306,2458.6,2458.5,7.27]
[1750788014069,2.00860133,2458.6,2458.5,7.27]
[1750788014268,2.00860133,2458.6,2458.5,8.08307]
[1750788014565,0.81306,2458.6,2458.5,7.27]
[1750788014867,0.81306,2458.6,2458.5,5.93]
[1750788016162,0.81306,2458.6,2458.5,7.3445]
[1750788016471,2.0086415,2458.6,2458.5,8.15757]
[1750788016663,2.0086415,2458.6,2458.5,7.3445]
[1750788017065,1.1955815,2458.6,2458.5,8.15758]
[1750788017369,27.6976215,2458.6,2458.5,7.3445]
[1750788017569,27.6976215,2458.6,2458.5,8.15758]
[1750788017773,26.8845815,2458.6,2458.5,8.15758]
[1750788018366,27.6976215,2458.6,2458.5,8.15758]
[1750788018977,33.80810127,2458.6,2458.5,5.93]
[1750788019466,34.58020127,2458.6,2458.5,5.62497445]
[1750788019671,40.58490127,2458.6,2458.5,5.62497445]
[1750788019868,0.81311,2458.4,2458.3,8.1354]
[1750788020167,26.49411,2458.4,2458.3,8.1554]
[1750788020358,27.6896915,2458.4,2458.3,4.9012]
[1750788021266,1.1955815,2458.4,2458.3,4.9012]
[1750788021469,33.7955815,2458.4,2458.3,4.9012]
[1750788021662,34.6086915,2458.4,2458.3,2.0538]
[1750788022161,37.8164915,2458.4,2458.3,2.0338]
[1750788022361,37.8164915,2458.4,2458.3,4.1938]
[1750788022362,30.0943815,2458.4,2458.3,4.1938]
[1750788022573,27.6996915,2458.4,2458.3,7.4016]
[1750788022964,1.1955815,2458.4,2458.3,10.40394]
[1750788023265,5.63683118,2458.9,2458.5,0.81307]
[1750788023266,0.81303,2458.7,2458.5,0.81307]
[1750788023571,0.81301,2458.8,2458.6,2.1817]
[1750788023871,7.73001,2458.8,2458.7,1.4011]
[1750788024075,33.42601,2458.8,2458.7,3.9911]
[1750788026269,0.81287,2459.2,2459.0,0.8129]
[1750788026468,0.81288,2459.1,2459.0,0.97]
[1750788027765,31.49788,2459.1,2459.0,0.97]
[1750788027968,0.81291,2459.0,2458.9,1.0167]
[1750788028171,5.02481,2459.0,2458.9,0.48614623]
[1750788028376,12.45384118,2459.0,2458.9,0.48614623]
[1750788029376,12.45384118,2459.0,2458.8,0.14061623]
[1750788029377,0.81294,2458.9,2458.8,0.14061623]
[1750788029673,0.81304,2458.6,2458.5,2.8472]
[1750788029869,32.62151977,2458.6,2458.5,0.43]
[1750788030374,33.62491977,2458.6,2458.5,0.43]
[1750788031274,32.62151977,2458.6,2458.5,0.43]
[1750788031469,33.42404,2458.6,2458.5,0.43]
[1750788032673,0.81304,2458.6,2458.5,0.43]
[1750788032869,33.74459567,2459.1,2458.5,0.43]
[1750788032870,3.24143059,2459.5,2458.8,0.81298]
[1750788033080,0.81281,2459.3,2459.2,3.2078]
[1750788033266,6.11047977,2459.6,2459.2,7.8978]
[1750788033466,0.81273,2459.6,2459.4,0.81277]
[1750788033677,0.81273,2459.6,2459.5,2.0577]
[1750788033978,0.81273,2459.6,2459.5,8.2277]
[1750788034670,6.92320977,2459.6,2459.5,7.4944]
[1750788034867,11.92320977,2459.6,2459.5,6.17]
[1750788035074,11.92320977,2459.6,2459.3,1.0165]
[1750788035075,0.81278,2459.4,2459.3,1.0165]
[1750788035268,0.81278,2459.4,2459.3,5.3065]
[1750788035269,33.50078,2459.4,2459.3,5.3065]
[1750788035472,34.67707047,2459.4,2459.3,5.3065]
[1750788038676,34.67707047,2459.4,2453.7,4.066]
[1750788038677,2.03269,2458.6,2456.8,16.031914]
[1750788038978,40.64075,2459.3,2456.8,12.6121]
[1750788038979,0.8136,2456.9,2456.8,12.6121]
[1750788039180,34.5866,2456.9,2456.8,12.6121]
[1750788039475,3.2078,2457.1,2456.8,17.6121]
[1750788039776,3.2078,2457.1,2457.0,7.0721]
[1750788039777,4.02134,2457.1,2457.0,7.0721]
[1750788040077,4.02134,2457.1,2457.0,10.9721]
[1750788040876,3.2078,2457.1,2457.0,10.9721]
[1750788041382,3.2078,2457.1,2457.0,16.78567]
[1750788042467,0.81349,2457.3,2457.1,0.81354]
[1750788042672,0.81349,2457.3,2457.2,7.0721]
[1750788042872,0.81349,2457.3,2457.2,12.9021]
[1750788043770,3.2078,2457.8,2457.2,20.1244]
[1750788043975,0.81342,2457.5,2457.3,7.88555]
[1750788044278,0.81342,2457.5,2457.4,1.4122]
[1750788044474,0.81342,2457.5,2457.4,14.9243]
[1750788044876,0.81342,2457.5,2457.4,6.44]
[1750788045078,4.02122,2457.5,2457.4,6.44]
[1750788046682,4.02122,2457.5,2457.4,4.87258]
[1750788046683,42.79122,2457.5,2457.4,4.87258]
[1750788046887,0.81357,2457.0,2456.9,0.08]
[1750788047090,0.8136,2456.9,2456.8,8.1404]
[1750788047384,0.8136,2456.9,2456.8,0.01]
[1750788047877,0.8137,2456.6,2456.5,1.3088]
[1750788048081,11.3685,2456.6,2456.5,7.0788]
[1750788048283,11.3685,2456.6,2456.5,5.77]
[1750788049782,11.3685,2456.6,2456.5,7.0788]
[1750788050681,11.3685,2456.6,2456.5,14.96464]
[1750788050682,3.2078,2456.6,2456.5,14.96464]
[1750788050890,7.348,2456.6,2456.5,14.96464]
[1750788051188,7.349,2456.7,2456.6,0.8137]
[1750788051488,7.349,2456.7,2456.6,14.8221]
[1750788051783,0.81367,2456.7,2456.6,14.8221]
[1750788051976,0.81367,2456.7,2456.6,14.0084]
[1750788052580,8.16266,2456.8,2456.6,14.0084]
[1750788052792,7.349,2456.8,2456.7,7.0721]
[1750788052992,7.349,2456.8,2456.7,12.4921]
[1750788053291,7.349,2456.9,2456.7,12.4921]
[1750788053593,7.349,2456.9,2456.8,9.29674]
[1750788053790,26.405,2457.0,2456.9,0.8136]
[1750788054092,0.81355,2457.1,2456.9,15.4167]
[1750788054288,47.25662482,2457.2,2457.0,7.8284]
[1750788054591,54.209,2457.2,2457.1,7.0721]
[1750788054891,55.02251,2457.2,2457.1,12.6521]
[1750788055189,0.81351,2457.2,2457.1,12.6521]
[1750788055489,0.81351,2457.2,2457.1,13.46561]
[1750788055888,30.4113,2457.3,2457.1,13.46561]
[1750788056089,30.4113,2457.3,2457.2,7.0721]
[1750788056290,30.4113,2457.3,2457.2,12.6521]
[1750788056488,30.41127,2457.3,2457.2,13.46561]
[1750788056698,3.2078,2457.3,2457.2,13.46561]
[1750788056994,0.81347,2457.3,2457.2,13.46561]
[1750788057294,27.18046,2457.4,2457.3,0.81347]
[1750788057490,27.18046,2457.4,2457.3,13.24557]
[1750788057990,0.81346,2457.4,2457.3,13.24557]
[1750788058391,34.52542,2457.5,2457.3,13.24557]
[1750788058593,0.81342,2457.5,2457.4,7.0721]
[1750788058790,34.51142,2457.5,2457.4,9.9021]
[1750788059691,34.49742,2457.5,2457.4,9.9021]
[1750788059891,3.2078,2457.6,2457.5,0.81341]
[1750788060190,4.02117,2457.6,2457.5,12.5721]
[1750788060593,4.02117,2457.6,2457.5,13.38551]
[1750788060894,4.02117,2457.6,2457.5,12.5721]
[1750788061596,4.02117,2457.6,2457.5,13.38551]
[1750788061793,4.02117,2457.6,2457.5,12.5721]
[1750788062297,10.14083884,2457.6,2457.5,5.5]
[1750788062698,10.53822053,2457.6,2457.5,5.5]
[1750788065097,10.53822053,2457.6,2457.5,12.5721]
[1750788065494,3.60518169,2457.6,2457.5,13.38551]
[1750788065695,7.349,2457.8,2457.7,0.81333]
[1750788065886,7.7507917,2457.8,2457.7,7.04333]
[1750788066192,7.349,2458.1,2457.8,2.03327]
[1750788066392,7.349,2458.1,2458.0,7.88534]
[1750788066592,7.349,2458.1,2458.0,14.00534]
[1750788066993,26.243,2458.2,2458.1,0.81318]
[1750788066994,27.05117,2458.2,2458.1,0.81318]
[1750788067196,1.59954988,2458.2,2458.1,9.39531]
[1750788067401,26.64558587,2458.2,2458.1,9.39531]
[1750788067593,27.45875587,2458.2,2458.1,8.5821]
[1750788068098,28.64949134,2458.2,2458.1,8.5821]
[1750788068497,34.76916018,2458.2,2458.1,8.5821]
[1750788068701,34.76916018,2458.2,2458.1,1.51]
[1750788068901,8.53216018,2458.2,2458.1,1.51]
[1750788069101,41.98716018,2458.2,2458.1,1.51]
[1750788069496,43.41326018,2458.2,2458.1,1.51]
[1750788070194,48.41326018,2458.2,2458.1,1.51]
[1750788072794,28.58149134,2458.2,2458.1,8.5821]
[1750788073003,28.58149134,2458.2,2458.1,1.51]
[1750788073496,28.58149134,2458.2,2458.1,1.20492589]
[1750788074702,2.41249134,2458.2,2458.1,1.20492589]
[1750788075009,35.79749134,2458.2,2458.1,1.20492589]
[1750788076503,35.79823097,2458.2,2458.1,1.20492589]
[1750788077103,34.60675587,2458.2,2458.1,1.20492589]
[1750788077997,35.79847786,2458.2,2458.1,1.20492589]
[1750788078399,34.60675587,2458.2,2458.1,1.20492589]
[1750788078602,35.93595587,2458.2,2458.1,1.20492589]
[1750788080201,35.79902389,2458.2,2458.1,0.89984193]
[1750788081005,2.41402389,2458.2,2458.1,0.89984193]
[1750788081200,35.71402389,2458.2,2458.1,0.89984193]
[1750788082305,2.41402389,2458.2,2458.1,1.71305193]
[1750788082610,35.70902389,2458.2,2458.1,7.97194193]
[1750788082809,35.70902389,2458.2,2458.1,9.30444193]
[1750788083107,35.70902389,2458.2,2458.1,10.11765193]
[1750788083510,2.41402389,2458.2,2458.1,10.11765193]
[1750788083708,35.69902389,2458.2,2458.1,9.30444193]
[1750788084010,1.60085389,2458.2,2458.1,10.11765193]
[1750788084205,34.88585389,2458.2,2458.1,10.98635193]
[1750788084407,2.58916884,2458.9,2458.6,0.81304]
[1750788084705,26.89899,2458.8,2458.7,0.81301]
[1750788085007,26.89899,2458.8,2458.7,9.64161]
[1750788085200,2.58916884,2458.9,2458.8,0.81298]
[1750788085400,10.4398,2459.1,2458.8,6.7736]
[1750788085600,26.90394,2459.0,2458.9,0.81294]
[1750788085898,26.091,2459.0,2458.9,6.83294]
[1750788086102,10.4398,2459.1,2459.0,0.81291]
[1750788086300,0.81282,2459.3,2459.0,6.36]
[1750788086502,0.81282,2459.3,2459.2,0.81282]
[1750788086700,0.81282,2459.3,2459.2,7.16282]
[1750788086905,34.1248,2459.4,2459.3,0.81281]
[1750788087100,0.81281,2459.3,2458.8,53.97024]
[1750788088716,11.25152,2459.6,2459.5,0.9161]
[1750788088906,37.31152,2459.6,2459.5,5.7861]
[1750788089306,10.4388,2459.6,2459.5,5.7861]
[1750788089507,36.4868,2459.6,2459.5,5.7861]
[1750788089706,37.29951,2459.6,2459.5,5.7861]
[1750788089908,8.04371,2459.6,2459.5,5.7861]
[1750788090112,34.09171,2459.6,2459.5,6.59884]
[1750788091017,26.84965,2459.8,2459.7,0.81265]
[1750788091221,0.81265,2459.8,2459.7,5.66]
[1750788091410,4.02045,2459.8,2459.7,5.66]
[1750788091716,0.81265,2459.8,2459.7,5.66]
[1750788092413,0.81265,2459.8,2459.7,6.47268]
[1750788092813,0.81265,2459.8,2459.7,5.66]
[1750788093326,0.81265,2459.8,2459.7,6.47268]
[1750788093923,0.81265,2459.8,2459.7,5.66]
[1750788094311,0.81265,2459.8,2459.7,6.47268]
[1750788094511,32.14066884,2459.9,2459.7,5.66]
[1750788094711,0.81265,2459.8,2459.7,6.47267]
[1750788094911,4.02045,2459.8,2459.7,5.66]
[1750788096620,32.95329884,2459.9,2459.7,6.47265]
[1750788096822,25.975,2460.2,2459.8,5.23939]
[1750788097026,25.975,2460.2,2460.1,0.81252]
[1750788097322,25.999,2460.2,2460.1,6.07252]
[1750788098117,26.81151,2460.2,2460.1,6.07252]
[1750788098627,25.999,2460.2,2460.1,6.07252]
[1750788098817,57.2858,2460.4,2460.1,5.26]
[1750788098818,54.078,2460.4,2460.1,5.26]
[1750788099019,10.4358,2460.4,2460.3,0.81248]
[1750788099220,10.4358,2460.4,2460.3,6.12248]
[1750788099221,3.2078,2460.4,2460.3,6.12248]
[1750788099414,7.90341,2460.6,2460.5,0.81241]
[1750788099618,33.88741,2460.6,2460.5,5.71]
[1750788100728,33.88041,2460.6,2460.5,5.71]
[1750788101026,33.88041,2460.6,2460.5,8.5549]
[1750788101413,33.88041,2460.6,2460.5,9.973]
[1750788102117,3.2078,2460.7,2460.5,9.973]
[1750788102317,25.963,2460.6,2460.5,10.7854]
[1750788102525,25.963,2460.6,2460.5,11.6164]
[1750788102719,25.956,2460.6,2460.5,11.61641]
[1750788103419,10.2978,2460.8,2460.7,0.81235]
[1750788103720,36.2398,2460.8,2460.7,5.26]
[1750788103921,29.1478,2460.8,2460.7,6.07235]
[1750788104131,3.2078,2460.8,2460.7,6.07235]
[1750788104329,3.2078,2461.4,2460.7,15.49865]
[1750788104515,25.948,2461.4,2460.8,1.418]
[1750788104824,32.06766884,2461.4,2461.0,0.81224]
[1750788105026,0.81218,2461.3,2461.1,2.2373]
[1750788105323,3.2078,2461.5,2461.2,2.23727]
[1750788105324,10.2968,2461.5,2461.2,2.23727]
[1750788105619,10.2968,2461.5,2461.2,6.35]
[1750788105620,0.81215,2461.3,2461.2,6.35]
[1750788110322,33.82015,2461.3,2461.2,6.35]
[1750788110627,35.12455,2461.3,2461.2,6.35]
[1750788111132,33.82015,2461.3,2461.2,6.35]
[1750788113027,34.96161411,2461.3,2461.2,6.35]
[1750788113427,34.96161411,2461.3,2461.2,6.04529785]
[1750788113628,36.35221411,2461.3,2461.2,5.64917455]
[1750788115331,34.90061411,2461.3,2461.2,5.64917455]
[1750788116333,25.862,2461.6,2461.2,8.85697455]
[1750788116528,25.954,2461.5,2461.4,0.81212]
[1750788116723,25.954,2461.6,2461.5,0.81206]
[1750788116928,2.40355256,2462.4,2462.1,0.81188]
[1750788117229,0.81185,2462.2,2462.1,5.37]
[1750788117429,35.09750093,2462.2,2462.1,5.37]
[1750788117627,35.09750093,2462.2,2462.1,4.17773198]
[1750788118231,36.44200093,2462.2,2462.1,4.17773198]
[1750788118730,42.56166977,2462.2,2462.1,4.17773198]
[1750788119442,2.02989,2461.9,2461.4,1.5909]
[1750788119641,0.81208,2461.5,2461.4,1.5909]
[1750788119842,0.81218,2461.2,2460.9,0.81226]
[1750788120030,0.81222,2461.1,2461.0,0.8143]
[1750788120336,26.88822,2461.1,2461.0,7.1243]
[1750788120638,26.076,2461.1,2461.0,7.1243]
[1750788120836,26.88822,2461.1,2461.0,7.1243]
[1750788121231,0.8122,2461.2,2461.0,7.1243]
[1750788121428,26.082,2461.1,2461.0,7.1243]
[1750788121635,26.096,2461.2,2461.1,0.81222]
[1750788121835,36.3858,2461.4,2461.3,0.81215]
[1750788122035,37.19792,2461.4,2461.3,6.2]
[1750788123035,38.34169491,2461.4,2461.3,6.2]
[1750788123833,38.33769491,2461.4,2461.3,6.2]
[1750788124442,38.65938128,2461.4,2461.3,6.2]
[1750788126138,5.16369491,2461.4,2461.3,6.2]
[1750788126344,38.31769491,2461.4,2461.3,6.2]
[1750788127940,4.35157491,2461.4,2461.3,7.01215]
[1750788128643,4.35157491,2461.4,2461.3,12.01215]
[1750788129246,5.16369491,2461.4,2461.3,11.2]
[1750788129445,5.16369491,2461.4,2461.3,12.01215]
[1750788129839,1.95589491,2461.4,2461.3,12.01215]
[1750788130541,0.81211,2461.5,2461.4,0.81207]
[1750788130846,0.81211,2461.5,2461.4,8.43327]
[1750788131048,0.81208,2461.6,2461.5,0.81205]
[1750788131243,2.02985,2462.0,2461.5,7.0612]
[1750788131447,0.81198,2461.9,2461.8,0.81196]
[1750788131645,26.84898,2461.9,2461.8,7.73316]
[1750788132144,0.81198,2461.9,2461.8,7.73316]
[1750788132343,26.85295,2462.0,2461.9,0.81192]
[1750788132643,26.85295,2462.0,2461.9,6.42192]
[1750788132644,26.041,2462.0,2461.9,6.42192]
[1750788132838,26.83892,2462.1,2462.0,0.81189]
[1750788133043,26.83892,2462.1,2462.0,6.22994611]
[1750788133545,0.81187,2462.2,2462.0,6.22994611]
[1750788133850,26.82687,2462.2,2462.1,0.8582]
[1750788134047,26.82687,2462.2,2462.1,7.3482]
[1750788136744,30.03467,2462.2,2462.1,7.3482]
[1750788136944,30.03467,2462.2,2462.1,6.49]
[1750788137742,29.2228,2462.2,2462.1,7.30189]
[1750788137941,29.1698,2462.2,2462.1,7.30189]
[1750788138849,29.98165,2462.2,2462.1,7.30189]
[1750788139043,29.1698,2462.2,2462.1,7.30189]
[1750788139445,29.1518,2462.5,2462.4,0.81179]
[1750788139647,29.1518,2462.5,2462.1,15.50969]
[1750788139648,0.81184,2462.4,2462.1,4.01965]
[1750788139846,0.81189,2462.1,2462.0,0.55994611]
[1750788140153,0.81189,2462.1,2462.0,6.91183611]
[1750788140949,0.81189,2462.1,2462.0,6.09994611]
[1750788141649,0.81189,2462.1,2462.0,6.91186611]
[1750788141847,5.81189,2462.1,2462.0,5.54]
[1750788142148,0.81192,2462.0,2461.9,4.2649]
[1750788142345,42.30518884,2462.0,2461.9,4.2949]
[1750788142547,48.44454719,2462.0,2461.9,0.03]
[1750788143144,43.44454719,2462.0,2461.9,0.03]
[1750788143736,10.35254719,2462.0,2461.9,0.03]
[1750788143937,43.43154719,2462.0,2461.9,0.03]
[1750788144450,0.81223,2461.1,2460.9,1.82807]
[1750788144742,25.929,2461.0,2460.9,7.58806]
[1750788145339,25.929,2461.0,2460.9,6.57226]
[1750788145741,1.63851,2461.5,2460.9,7.79068]
[1750788146038,0.81216,2461.3,2461.2,0.81218]
[1750788146346,29.94192,2461.4,2461.2,6.85216]
[1750788146540,29.94192,2461.4,2461.3,0.8367]
[1750788146737,29.94192,2461.4,2461.3,7.7847]
[1750788147143,29.93592,2461.4,2461.3,7.7847]
[1750788147650,29.93592,2461.4,2461.3,6.948]
[1750788147852,29.93592,2461.4,2461.3,6.14]
[1750788148351,31.07579572,2461.4,2461.3,6.14]
[1750788149152,37.49329572,2461.4,2461.3,6.14]
[1750788149857,0.81218,2461.2,2461.1,4.2663]
[1750788150151,33.9734446,2461.2,2461.1,3.52]
[1750788150351,38.9734446,2461.2,2461.1,3.52]
[1750788150854,38.9734446,2461.2,2461.1,0.2595]
[1750788151044,41.1692446,2461.2,2461.1,0.2595]
[1750788152156,0.81232,2460.8,2460.7,1.0159]
[1750788152351,43.16078884,2460.8,2460.7,2.4959]
[1750788152654,43.16078884,2460.8,2460.7,1.48]
[1750788153551,43.49088596,2460.8,2460.7,1.48]
[1750788153752,43.16078884,2460.8,2460.7,1.48]
[1750788155352,43.12778884,2460.8,2460.7,1.48]
[1750788157151,10.13978884,2460.8,2460.7,1.48]
[1750788157353,4.02012,2460.8,2460.7,2.29235]
[1750788157551,0.81226,2461.0,2460.7,1.48]
[1750788157854,0.81227,2461.0,2460.7,1.48]
[1750788158055,10.3498,2461.1,2461.0,0.81225]
[1750788158258,3.2078,2461.1,2461.0,6.05225]
[1750788158459,25.822,2461.3,2461.0,10.24]
[1750788158648,25.822,2461.3,2461.2,0.81218]
[1750788158848,25.822,2461.3,2461.2,6.49218]
[1750788159560,26.63415,2461.3,2461.2,6.49218]
[1750788159761,25.822,2461.3,2461.2,6.49218]
[1750788160153,26.63415,2461.3,2461.2,6.49218]
[1750788161959,26.63415,2461.3,2461.2,5.68]
[1750788162158,26.63415,2461.3,2461.2,6.49218]
[1750788162763,25.822,2461.3,2461.2,6.49218]
[1750788162955,3.2078,2461.4,2461.3,0.81215]
[1750788163262,0.81211,2461.5,2461.4,0.81212]
[1750788163457,26.59811,2461.5,2461.4,6.97692]
[1750788163662,25.786,2461.5,2461.4,8.31202]
[1750788163865,26.59808,2461.5,2461.4,8.31202]
[1750788164053,2.02991,2461.9,2461.4,12.4999]
[1750788164258,0.81206,2461.7,2461.6,0.81202]
[1750788164456,0.81197,2461.9,2461.7,0.81202]
[1750788164656,7.80597,2461.9,2461.8,2.1153]
[1750788164853,33.59197,2461.9,2461.8,3.3253]
[1750788165760,7.80597,2461.9,2461.8,3.3253]
[1750788165953,7.80597,2461.9,2461.8,4.13729]
[1750788166155,33.58997,2461.9,2461.8,4.13729]